lending/lending_fUSD_20241103
["ID","MTS","AMOUNT","RATE_DAILY","PERIOD"]
[341209029,1730646684726,-500.0,0.0003863,2]
[341209030,1730646684735,-500.0,0.0003863,2]
[341209031,1730646684744,-1238.57,0.0003863,2]
[341209032,1730646684754,-500.0,0.0003863,2]
[341209033,1730646684763,-1845.76,0.0003863,2]
[341209034,1730646684773,-191.01518393,0.0003863,2]
[341209035,1730646684783,-500.0,0.0003863,2]
[341209036,1730646684792,-500.0,0.0003863,2]
[341209037,1730646684801,-500.0,0.0003863,2]
[341209038,1730646684811,-500.0,0.0003863,2]
[341209039,1730646684820,-963.64,0.0003863,2]
[341209040,1730646684829,-2000.0,0.0003863,30]
[341209041,1730646684839,-500.0,0.0003863,2]
[341209042,1730646684851,-500.0,0.0003863,2]
[341209043,1730646684864,-500.0,0.0003863,2]
[341209044,1730646684874,-500.0,0.0003863,2]
[341209045,1730646684883,-500.0,0.0003863,2]
[341209046,1730646684892,-500.0,0.0003863,2]
[341209047,1730646684902,-500.0,0.0003863,2]
[341209048,1730646684912,-440.67432006,0.0003863,2]
[341209049,1730646684921,-500.0,0.0003863,2]
[341209050,1730646684930,-5855.7,0.0003863,2]
[341209051,1730646684940,-1805.52,0.0003863,2]
[341209052,1730646684950,-1176.28,0.0003863,2]
[341209053,1730646684960,-602.78,0.0003863,2]
[341209054,1730646684968,-500.0,0.0003863,2]
[341209055,1730646684978,-500.0,0.0003863,2]
[341209056,1730646684987,-500.0,0.0003863,2]
[341209057,1730646684996,-500.0,0.0003863,2]
[341209058,1730646685005,-500.0,0.0003863,2]
[341209059,1730646685015,-458.50888051,0.0003863,2]
[341209060,1730646685026,-500.0,0.0003863,2]
[341209061,1730646685035,-500.0,0.0003863,2]
[341209062,1730646685044,-500.0,0.0003863,2]
[341209063,1730646685053,-500.0,0.0003863,2]
[341209064,1730646685063,-500.0,0.0003863,2]
[341209065,1730646685072,-629.56240182,0.0003863,2]
[341209066,1730646685081,-500.0,0.0003863,2]
[341209067,1730646685090,-1152.43,0.0003863,2]
[341209068,1730646685099,-500.0,0.0003863,2]
[341209069,1730646685112,-532.83259189,0.0003863,2]
[341209070,1730646685122,-500.0,0.0003863,2]
[341209071,1730646685131,-244.59269799,0.0003863,2]
[341209072,1730646685140,-597.19560051,0.0003863,2]
[341209073,1730646685149,-1221.41,0.0003863,2]
[341209074,1730646685160,-3349.02,0.0003863,2]
[341209075,1730646685170,-1633.72,0.0003863,2]
[341209076,1730646685180,-500.0,0.0003863,2]
[341209077,1730646685189,-500.0,0.0003863,2]
[341209078,1730646685198,-1238.48,0.0003863,2]
[341209079,1730646685208,-500.0,0.0003863,2]
[341209080,1730646685217,-500.0,0.0003863,2]
[341209081,1730646685227,-500.0,0.0003863,2]
[341209082,1730646685236,-488.3434034,0.0003863,2]
[341209083,1730646685246,-262.63793586,0.0003863,2]
[341209084,1730646685255,-500.0,0.0003863,2]
[341209085,1730646685265,-500.0,0.0003863,2]
[341209086,1730646685274,-500.0,0.0003863,2]
[341209087,1730646685283,-3905.42,0.0003863,2]
[341209088,1730646685292,-500.0,0.0003863,2]
[341209089,1730646685302,-1373.97,0.0003863,2]
[341209090,1730646685314,-500.0,0.0003863,2]
[341209091,1730646685323,-500.0,0.0003863,2]
[341209092,1730646685332,-500.0,0.0003863,2]
[341209093,1730646685342,-152.0,0.00038641,9]
[341209094,1730646685351,-1000.0,0.00038684,5]
[341209095,1730646685367,-209.4634605,0.00038766,30]
[341209096,1730646685376,-27922.31260756,0.000388,2]
[341209097,1730646685385,-350.0,0.00038868,4]
[341209098,1730646685395,-30301.0,0.0003888,30]
[341209099,1730646685404,-1488.5,0.00038904,2]
[341209100,1730646685413,-956.1,0.00038904,7]
[341209101,1730646685423,-164.11989415,0.00038904,2]
[341209102,1730646685432,-500.0,0.00038904,2]
[341209103,1730646685440,-500.0,0.00038904,2]
[341209104,1730646685449,-500.0,0.00038904,2]
[341209105,1730646685460,-500.0,0.00038904,2]
[341209106,1730646685470,-906.58,0.00038904,2]
[341209107,1730646685480,-500.0,0.00038904,2]
[341209108,1730646685489,-500.0,0.00038904,2]
[341209109,1730646685498,-607.97170512,0.00038904,2]
[341209110,1730646685508,-500.0,0.00038904,2]
[341209111,1730646685517,-527.25284487,0.00038904,2]
[341209112,1730646685526,-500.0,0.00038904,2]
[341209113,1730646685539,-500.0,0.00038904,2]
[341209114,1730646685548,-500.0,0.00038904,2]
[341209115,1730646685558,-500.0,0.00038904,2]
[341209116,1730646685568,-500.0,0.00038904,2]
[341209117,1730646685577,-500.0,0.00038904,2]
[341209118,1730646685586,-500.0,0.00038904,2]
[341209119,1730646685596,-500.0,0.00038904,2]
[341209120,1730646685608,-500.0,0.00038904,2]
[341209121,1730646685617,-319.58903513,0.00038904,2]
[341209122,1730646685627,-500.0,0.00038904,2]
[341209123,1730646685636,-601.23406124,0.00038904,2]
[341209124,1730646685646,-500.0,0.00038904,2]
[341209125,1730646685656,-500.0,0.00038904,2]
[341209126,1730646685665,-500.0,0.00038904,2]
[341209127,1730646685675,-553.52381344,0.00038904,2]
[341209128,1730646685684,-500.0,0.00038904,2]
[341209129,1730646685694,-500.0,0.00038904,2]
[341209130,1730646685703,-500.0,0.00038904,2]
[341209131,1730646685713,-500.0,0.00038904,2]
[341209132,1730646685722,-500.0,0.00038904,2]
[341209133,1730646685737,-500.0,0.00038904,2]
[341209134,1730646685751,-500.0,0.00038904,2]
[341209135,1730646685764,-500.0,0.00038904,2]
[341209136,1730646685776,-500.0,0.00038904,2]
[341209137,1730646685789,-500.0,0.00038904,2]
[341209138,1730646685803,-500.0,0.00038904,2]
[341209139,1730646685817,-500.0,0.00038904,2]
[341209140,1730646685830,-500.0,0.00038904,2]
[341209141,1730646685846,-500.0,0.00038904,2]
[341209142,1730646685867,-1281.51,0.00038904,2]
[341209143,1730646685880,-250.0,0.00038904,2]
[341209144,1730646685893,-500.0,0.00038904,2]
[341209145,1730646685906,-500.0,0.00038904,2]
[341209146,1730646685921,-500.0,0.00038904,2]
[341209147,1730646685934,-500.0,0.00038904,2]
[341209148,1730646685945,-500.0,0.00038904,2]
[341209149,1730646685958,-500.0,0.00038904,2]
[341209150,1730646685970,-798.34,0.00038904,2]
[341209151,1730646685985,-500.0,0.00038904,2]
[341209152,1730646685999,-500.0,0.00038904,2]
[341209153,1730646686013,-500.0,0.00038904,2]
[341209154,1730646686027,-625.21374965,0.00038904,2]
[341209155,1730646686041,-500.0,0.00038904,2]
[341209156,1730646686051,-518.43328884,0.00038904,2]
[341209157,1730646686062,-1672.57,0.00038904,2]
[341209158,1730646686075,-500.0,0.00038904,2]
[341209159,1730646686090,-500.0,0.00038904,2]
[341209160,1730646686101,-500.0,0.00038904,2]
[341209161,1730646686128,-240.65509035,0.00038904,2]
[341209162,1730646686148,-500.0,0.00038904,2]
[341209163,1730646686161,-500.0,0.00038904,2]
[341209164,1730646686177,-500.0,0.00038904,2]
[341209165,1730646686189,-150.0,0.00038904,2]
[341209166,1730646686201,-500.0,0.00038904,2]
[341209167,1730646686214,-521.90209797,0.00038904,2]
[341209168,1730646686225,-500.0,0.00038904,2]
[341209169,1730646686236,-203.54962947,0.00038904,2]
[341209170,1730646686249,-500.0,0.00038904,2]
[341209171,1730646686260,-500.0,0.00038904,2]
[341209172,1730646686272,-500.0,0.00038904,2]
[341209173,1730646686284,-500.0,0.00038904,2]
[341209174,1730646686296,-500.0,0.00038904,2]
[341209175,1730646686309,-500.0,0.00038904,2]
[341209176,1730646686321,-500.0,0.00038904,2]
[341209177,1730646686334,-500.0,0.00038904,2]
[341209178,1730646686345,-500.0,0.00038904,2]
[341209179,1730646686361,-503.91,0.00038904,2]
[341209180,1730646686373,-500.0,0.00038904,2]
[341209181,1730646686385,-500.0,0.00038904,2]
[341209182,1730646686396,-500.0,0.00038904,2]
[341209183,1730646686408,-500.0,0.00038904,2]
[341209184,1730646686419,-500.0,0.00038904,2]
[341209185,1730646686430,-500.0,0.00038904,2]
[341209186,1730646686440,-1000.0,0.00038904,89]
[341209187,1730646686451,-427.40037269,0.00038904,2]
[341209188,1730646686465,-513.38,0.00038904,2]
[341209189,1730646686477,-484.41516037,0.00038904,2]
[341209190,1730646686488,-500.0,0.00038904,2]
[341209191,1730646686499,-500.0,0.00038904,2]
[341209192,1730646686510,-500.0,0.00038904,2]
[341209193,1730646686522,-500.0,0.00038904,2]
[341209194,1730646686533,-624.74586685,0.00038904,2]
[341209195,1730646686545,-596.66834697,0.00038904,2]
[341209196,1730646686556,-500.0,0.00038904,2]
[341209197,1730646686568,-2000.0,0.00038904,2]
[341209198,1730646686578,-500.0,0.00038904,2]
[341209199,1730646686590,-500.0,0.00038904,2]
[341209200,1730646686601,-500.0,0.00038904,2]
[341209201,1730646686613,-500.0,0.00038904,2]
[341209202,1730646686625,-500.0,0.00038904,2]
[341209203,1730646686636,-300.97214509,0.00038904,2]
[341209204,1730646686647,-500.0,0.00038904,2]
[341209205,1730646686659,-500.0,0.00038904,2]
[341209206,1730646686670,-1147.15,0.00038904,2]
[341209207,1730646686681,-500.0,0.00038904,2]
[341209208,1730646686692,-908.15,0.00038904,2]
[341209209,1730646686703,-500.0,0.00038904,2]
[341209210,1730646686714,-10956.67,0.00038904,2]
[341209211,1730646686725,-500.0,0.00038904,2]
[341209212,1730646686737,-500.0,0.00038904,2]
[341209213,1730646686748,-500.0,0.00038904,2]
[341209214,1730646686760,-500.0,0.00038904,2]
[341209215,1730646686771,-500.0,0.00038904,2]
[341209216,1730646686781,-500.0,0.00038904,2]
[341209217,1730646686792,-602.99,0.00038904,2]
[341209218,1730646686803,-691.73,0.00038904,2]
[341209219,1730646686814,-769.94,0.00038904,2]
[341209220,1730646686825,-500.0,0.00038904,2]
[341209221,1730646686837,-500.0,0.00038904,2]
[341209222,1730646686849,-379.088975,0.00038904,14]
[341209223,1730646686862,-379.088975,0.00038904,14]
[341209224,1730646686873,-500.0,0.00038904,2]
[341209225,1730646686885,-500.0,0.00038904,2]
[341209226,1730646686895,-500.0,0.00038904,2]
[341209227,1730646686907,-500.0,0.00038904,2]
[341209228,1730646686918,-660.29,0.00038904,2]
[341209229,1730646686930,-500.0,0.00038904,2]
[341209230,1730646686943,-500.0,0.00038904,2]
[341209231,1730646686955,-500.0,0.00038904,2]
[341209232,1730646686969,-500.0,0.00038904,2]
[341209233,1730646686980,-500.0,0.00038904,2]
[341209234,1730646686990,-500.0,0.00038904,2]
[341209235,1730646687001,-684.44,0.00038904,2]
[341209236,1730646687011,-500.0,0.00038904,2]
[341209237,1730646687023,-167.06061692,0.00038904,2]
[341209238,1730646687034,-500.0,0.00038904,2]
[341209239,1730646687045,-500.0,0.00038904,2]
[341209240,1730646687055,-500.0,0.00038904,2]
[341209241,1730646687069,-500.0,0.00038904,2]
[341209242,1730646687080,-3893.36,0.00038904,2]
[341209243,1730646687090,-500.0,0.00038904,2]
[341209244,1730646687101,-565.28988662,0.00038904,2]
[341209245,1730646687113,-627.36,0.00038904,2]
[341209246,1730646687124,-500.0,0.00038904,2]
[341209247,1730646687135,-175.831982,0.00038904,14]
[341209248,1730646687148,-317.41459818,0.00038904,2]
[341209249,1730646687160,-1238.57,0.00038904,2]
[341209250,1730646687172,-175.831982,0.00038904,14]
[341209251,1730646687183,-500.0,0.00038904,2]
[341209252,1730646687195,-1845.76,0.00038904,2]
[341209253,1730646687206,-295.58339219,0.00038904,2]
[341209254,1730646687219,-500.0,0.00038904,2]
[341209255,1730646687230,-500.0,0.00038904,2]
[341209256,1730646687242,-500.0,0.00038904,2]
[341209257,1730646687253,-963.64,0.00038904,2]
[341209258,1730646687265,-2000.0,0.00038904,30]
[341209259,1730646687276,-500.0,0.00038904,2]
[341209260,1730646687287,-500.0,0.00038904,2]
[341209261,1730646687298,-500.0,0.00038904,2]
[341209262,1730646687312,-500.0,0.00038904,2]
[341209263,1730646687322,-500.0,0.00038904,2]
[341209264,1730646687333,-267.15083728,0.00038904,2]
[341209265,1730646687343,-500.0,0.00038904,2]
[341209266,1730646687355,-500.0,0.00038904,2]
[341209267,1730646687365,-5855.7,0.00038904,2]
[341209268,1730646687377,-1805.52,0.00038904,2]
[341209269,1730646687388,-1176.28,0.00038904,2]
[341209270,1730646687399,-602.78,0.00038904,2]
[341209271,1730646687410,-500.0,0.00038904,2]
[341209272,1730646687421,-500.0,0.00038904,2]
[341209273,1730646687433,-500.0,0.00038904,2]
[341209274,1730646687445,-543.08852971,0.00038904,2]
[341209275,1730646687455,-500.0,0.00038904,2]
[341209276,1730646687467,-500.0,0.00038904,2]
[341209277,1730646687478,-500.0,0.00038904,2]
[341209278,1730646687489,-500.0,0.00038904,2]
[341209279,1730646687500,-500.0,0.00038904,2]
[341209280,1730646687512,-500.0,0.00038904,2]
[341209281,1730646687525,-500.0,0.00038904,2]
[341209282,1730646687537,-1152.43,0.00038904,2]
[341209283,1730646687550,-368.413794,0.00038904,14]
[341209284,1730646687564,-500.0,0.00038904,2]
[341209285,1730646687576,-500.0,0.00038904,2]
[341209286,1730646687588,-368.413794,0.00038904,14]
[341209287,1730646687600,-1221.41,0.00038904,2]
[341209288,1730646687615,-3349.02,0.00038904,2]
[341209289,1730646687628,-1633.72,0.00038904,2]
[341209290,1730646687640,-500.0,0.00038904,2]
[341209291,1730646687653,-500.0,0.00038904,2]
[341209292,1730646687665,-1238.48,0.00038904,2]
[341209293,1730646687679,-520.78694529,0.00038904,2]
[341209294,1730646687693,-500.0,0.00038904,2]
[341209295,1730646687706,-215.697648,0.00038904,14]
[341209296,1730646687907,-500.0,0.00038904,2]
[341209297,1730646687917,-500.0,0.00038904,2]
[341209298,1730646687927,-500.0,0.00038904,2]
[341209299,1730646687937,-500.0,0.00038904,2]
[341209300,1730646687947,-3905.42,0.00038904,2]
[341209301,1730646687959,-500.0,0.00038904,2]
[341209302,1730646687969,-1373.97,0.00038904,2]
[341209303,1730646687978,-295.96094031,0.00038904,2]
[341209304,1730646687988,-500.0,0.00038904,2]
[341209305,1730646687997,-454.48838986,0.00038904,2]
[341209306,1730646688007,-150.5,0.0003897,30]
[341209307,1730646688017,-305.9325184,0.00038973,2]
[341209308,1730646688026,-1193.8871538,0.00038973,2]
[341209309,1730646688036,-150.5,0.0003898,30]
[341209310,1730646688045,-150.5,0.0003899,30]
[341209311,1730646688054,-100242.0,0.00039,30]
[341209312,1730646688065,-1017.0,0.00039,9]
[341209313,1730646688075,-1000.0,0.00039,9]
[341209314,1730646688084,-1002.0,0.00039,6]
[341209315,1730646688094,-2314.16498285,0.00039,4]
[341209316,1730646688103,-11130.22892812,0.00039,120]
[341209317,1730646688115,-425.43625136,0.00039,120]
[341209318,1730646688124,-13858.38256207,0.00039,7]
[341209319,1730646688133,-558.64616946,0.00039,120]
[341209320,1730646688142,-199.18160097,0.00039,120]
[341209321,1730646688151,-10917.47978106,0.00039,7]
[341209322,1730646688161,-3391.81040867,0.00039,2]
[341209323,1730646688170,-700.0,0.00039,2]
[341209324,1730646688179,-379.088975,0.00039,14]
[341209325,1730646688189,-379.088981,0.00039,14]
[341209326,1730646688200,-218.0,0.00039,2]
[341209327,1730646688209,-175.831982,0.00039,14]
[341209328,1730646688218,-175.831988,0.00039,14]
[341209329,1730646688228,-5012.57555,0.00039022,30]
[341209330,1730646688237,-220.68652,0.00039088,7]
[341209331,1730646688246,-573.752857,0.00039151,2]
[341209332,1730646688255,-1488.5,0.00039178,2]
[341209333,1730646688264,-956.1,0.00039178,7]
[341209334,1730646688274,-500.0,0.00039178,2]
[341209335,1730646688284,-500.0,0.00039178,2]
[341209336,1730646688293,-234.50151415,0.00039178,2]
[341209337,1730646688303,-500.0,0.00039178,2]
[341209338,1730646688317,-906.58,0.00039178,2]
[341209339,1730646688326,-500.0,0.00039178,2]
[341209340,1730646688335,-500.0,0.00039178,2]
[341209341,1730646688345,-500.0,0.00039178,2]
[341209342,1730646688358,-500.0,0.00039178,2]
[341209343,1730646688368,-456.33146755,0.00039178,2]
[341209344,1730646688378,-500.0,0.00039178,2]
[341209345,1730646688389,-637.21281779,0.00039178,2]
[341209346,1730646688398,-635.97348292,0.00039178,2]
[341209347,1730646688408,-500.0,0.00039178,2]
[341209348,1730646688417,-500.0,0.00039178,2]
[341209349,1730646688427,-500.0,0.00039178,2]
[341209350,1730646688436,-500.0,0.00039178,2]
[341209351,1730646688446,-500.0,0.00039178,2]
[341209352,1730646688456,-500.0,0.00039178,2]
[341209353,1730646688465,-500.0,0.00039178,2]
[341209354,1730646688475,-500.0,0.00039178,2]
[341209355,1730646688484,-192.76747694,0.00039178,2]
[341209356,1730646688493,-500.0,0.00039178,2]
[341209357,1730646688503,-500.0,0.00039178,2]
[341209358,1730646688513,-500.0,0.00039178,2]
[341209359,1730646688523,-500.0,0.00039178,2]
[341209360,1730646688531,-500.0,0.00039178,2]
[341209361,1730646688541,-185.49547333,0.00039178,2]
[341209362,1730646688551,-500.0,0.00039178,2]
[341209363,1730646688561,-281.72422313,0.00039178,2]
[341209364,1730646688570,-501.75871799,0.00039178,2]
[341209365,1730646688580,-500.0,0.00039178,2]
[341209366,1730646688589,-500.0,0.00039178,2]
[341209367,1730646688598,-500.0,0.00039178,2]
[341209368,1730646688609,-289.96414307,0.00039178,2]
[341209369,1730646688619,-1281.51,0.00039178,2]
[341209370,1730646688628,-250.0,0.00039178,2]
[341209371,1730646688637,-500.0,0.00039178,2]
[341209372,1730646688647,-500.0,0.00039178,2]
[341209373,1730646688656,-500.0,0.00039178,2]
[341209374,1730646688666,-500.0,0.00039178,2]
[341209375,1730646688675,-500.0,0.00039178,2]
[341209376,1730646688684,-500.0,0.00039178,2]
[341209377,1730646688693,-798.34,0.00039178,2]
[341209378,1730646688703,-500.0,0.00039178,2]
[341209379,1730646688712,-500.0,0.00039178,2]
[341209380,1730646688721,-500.0,0.00039178,2]
[341209381,1730646688731,-500.0,0.00039178,2]
[341209382,1730646688741,-1672.57,0.00039178,2]
[341209383,1730646688750,-500.0,0.00039178,2]
[341209384,1730646688760,-500.0,0.00039178,2]
[341209385,1730646688770,-500.0,0.00039178,2]
[341209386,1730646688779,-500.0,0.00039178,2]
[341209387,1730646688789,-500.0,0.00039178,2]
[341209388,1730646688799,-500.0,0.00039178,2]
[341209389,1730646688808,-150.0,0.00039178,2]
[341209390,1730646688818,-500.0,0.00039178,2]
[341209391,1730646688827,-500.0,0.00039178,2]
[341209392,1730646688837,-500.0,0.00039178,2]
[341209393,1730646688846,-500.0,0.00039178,2]
[341209394,1730646688858,-500.0,0.00039178,2]
[341209395,1730646688867,-500.0,0.00039178,2]
[341209396,1730646688877,-500.0,0.00039178,2]
[341209397,1730646688886,-500.0,0.00039178,2]
[341209398,1730646688896,-500.0,0.00039178,2]
[341209399,1730646688905,-500.0,0.00039178,2]
[341209400,1730646688915,-500.0,0.00039178,2]
[341209401,1730646688924,-503.91,0.00039178,2]
[341209402,1730646688934,-500.0,0.00039178,2]
[341209403,1730646688944,-500.0,0.00039178,2]
[341209404,1730646688954,-500.0,0.00039178,2]
[341209405,1730646688963,-534.1904861,0.00039178,2]
[341209406,1730646688972,-500.0,0.00039178,2]
[341209407,1730646688981,-500.0,0.00039178,2]
[341209408,1730646688991,-1000.0,0.00039178,89]
[341209409,1730646689000,-513.38,0.00039178,2]
[341209410,1730646689010,-500.0,0.00039178,2]
[341209411,1730646689020,-500.0,0.00039178,2]
[341209412,1730646689029,-528.80280538,0.00039178,2]
[341209413,1730646689039,-500.0,0.00039178,2]
[341209414,1730646689048,-500.0,0.00039178,2]
[341209415,1730646689058,-2000.0,0.00039178,2]
[341209416,1730646689067,-500.0,0.00039178,2]
[341209417,1730646689076,-500.0,0.00039178,2]
[341209418,1730646689085,-500.0,0.00039178,2]
[341209419,1730646689095,-500.0,0.00039178,2]
[341209420,1730646689104,-500.0,0.00039178,2]
[341209421,1730646689122,-500.0,0.00039178,2]
[341209422,1730646689132,-500.0,0.00039178,2]
[341209423,1730646689141,-1147.15,0.00039178,2]
[341209424,1730646689151,-500.0,0.00039178,2]
[341209425,1730646689160,-908.15,0.00039178,2]
[341209426,1730646689170,-500.0,0.00039178,2]
[341209427,1730646689179,-10956.67,0.00039178,2]
[341209428,1730646689189,-500.0,0.00039178,2]
[341209429,1730646689198,-500.0,0.00039178,2]
[341209430,1730646689208,-500.0,0.00039178,2]
[341209431,1730646689217,-500.0,0.00039178,2]
[341209432,1730646689227,-500.0,0.00039178,2]
[341209433,1730646689236,-304.82915938,0.00039178,2]
[341209434,1730646689245,-602.99,0.00039178,2]
[341209435,1730646689255,-691.73,0.00039178,2]
[341209436,1730646689263,-769.94,0.00039178,2]
[341209437,1730646689273,-500.0,0.00039178,2]
[341209438,1730646689283,-500.0,0.00039178,2]
[341209439,1730646689294,-500.0,0.00039178,2]
[341209440,1730646689303,-500.0,0.00039178,2]
[341209441,1730646689318,-500.0,0.00039178,2]
[341209442,1730646689327,-500.0,0.00039178,2]
[341209443,1730646689337,-660.29,0.00039178,2]
[341209444,1730646689346,-500.0,0.00039178,2]
[341209445,1730646689357,-232.36390622,0.00039178,2]
[341209446,1730646689367,-500.0,0.00039178,2]
[341209447,1730646689375,-500.0,0.00039178,2]
[341209448,1730646689386,-528.90929808,0.00039178,2]
[341209449,1730646689395,-500.0,0.00039178,2]
[341209450,1730646689405,-684.44,0.00039178,2]
[341209451,1730646689414,-500.0,0.00039178,2]
[341209452,1730646689424,-500.0,0.00039178,2]
[341209453,1730646689434,-317.03882766,0.00039178,2]
[341209454,1730646689444,-500.0,0.00039178,2]
[341209455,1730646689454,-492.17904314,0.00039178,2]
[341209456,1730646689464,-3893.36,0.00039178,2]
[341209457,1730646689474,-500.0,0.00039178,2]
[341209458,1730646689484,-627.36,0.00039178,2]
[341209459,1730646689493,-500.0,0.00039178,2]
[341209460,1730646689503,-1238.57,0.00039178,2]
[341209461,1730646689513,-500.0,0.00039178,2]
[341209462,1730646689523,-1845.76,0.00039178,2]
[341209463,1730646689534,-500.0,0.00039178,2]
[341209464,1730646689546,-500.0,0.00039178,2]
[341209465,1730646689555,-500.0,0.00039178,2]
[341209466,1730646689567,-963.64,0.00039178,2]
[341209467,1730646689577,-2000.0,0.00039178,30]
[341209468,1730646689587,-500.0,0.00039178,2]
[341209469,1730646689598,-500.0,0.00039178,2]
[341209470,1730646689610,-500.0,0.00039178,2]
[341209471,1730646689620,-500.0,0.00039178,2]
[341209472,1730646689630,-500.0,0.00039178,2]
[341209473,1730646689639,-500.0,0.00039178,2]
[341209474,1730646689649,-246.75506806,0.00039178,2]
[341209475,1730646689658,-5855.7,0.00039178,2]
[341209476,1730646689668,-1805.52,0.00039178,2]
[341209477,1730646689677,-1176.28,0.00039178,2]
[341209478,1730646689687,-602.78,0.00039178,2]
[341209479,1730646689696,-500.0,0.00039178,2]
[341209480,1730646689705,-500.0,0.00039178,2]
[341209481,1730646689715,-488.77221733,0.00039178,2]
[341209482,1730646689725,-500.0,0.00039178,2]
[341209483,1730646689734,-500.0,0.00039178,2]
[341209484,1730646689743,-500.0,0.00039178,2]
[341209485,1730646689752,-255.77596583,0.00039178,2]
[341209486,1730646689762,-500.0,0.00039178,2]
[341209487,1730646689771,-572.58575199,0.00039178,2]
[341209488,1730646689780,-500.0,0.00039178,2]
[341209489,1730646689790,-1152.43,0.00039178,2]
[341209490,1730646689799,-500.0,0.00039178,2]
[341209491,1730646689808,-500.0,0.00039178,2]
[341209492,1730646689818,-1221.41,0.00039178,2]
[341209493,1730646689827,-3349.02,0.00039178,2]
[341209494,1730646689837,-1633.72,0.00039178,2]
[341209495,1730646689846,-500.0,0.00039178,2]
[341209496,1730646689858,-500.0,0.00039178,2]
[341209497,1730646689867,-1238.48,0.00039178,2]
[341209498,1730646689876,-500.0,0.00039178,2]
[341209499,1730646689886,-500.0,0.00039178,2]
[341209500,1730646689895,-289.52761672,0.00039178,2]
[341209501,1730646689904,-500.0,0.00039178,2]
[341209502,1730646689913,-500.0,0.00039178,2]
[341209503,1730646689923,-3905.42,0.00039178,2]
[341209504,1730646689932,-500.0,0.00039178,2]
[341209505,1730646689941,-1373.97,0.00039178,2]
[341209506,1730646689951,-500.0,0.00039178,2]
[341209507,1730646689960,-685.398,0.00039196,54]
[341209508,1730646689970,-2110.0,0.00039279,2]
[341209509,1730646689979,-220.68652,0.00039288,7]
[341209510,1730646689989,-450.0,0.00039416,4]
[341209511,1730646689998,-18650.70760754,0.00039452,3]
[341209512,1730646690007,-672249.37549358,0.00039452,3]
[341209513,1730646690017,-1488.5,0.00039452,2]
[341209514,1730646690026,-956.1,0.00039452,7]
[341209515,1730646690036,-500.0,0.00039452,2]
[341209516,1730646690045,-500.0,0.00039452,2]
[341209517,1730646690054,-500.0,0.00039452,2]
[341209518,1730646690063,-906.58,0.00039452,2]
[341209519,1730646690072,-500.0,0.00039452,2]
[341209520,1730646690081,-500.0,0.00039452,2]
[341209521,1730646690090,-500.0,0.00039452,2]
[341209522,1730646690099,-500.0,0.00039452,2]
[341209523,1730646690111,-500.0,0.00039452,2]
[341209524,1730646690121,-500.0,0.00039452,2]
[341209525,1730646690129,-500.0,0.00039452,2]
[341209526,1730646690139,-423.04112116,0.00039452,2]
[341209527,1730646690148,-500.0,0.00039452,2]
[341209528,1730646690157,-500.0,0.00039452,2]